bitfinex-derivatives/quotes_ETHF0:USTF0_20250417
["timestamp","ask_amount","ask_price","bid_price","bid_amount"]
[1744915552510,6.88874,1612.2,1612.1,5.48671]
[1744915555915,1.24079,1612.1,1611.9,7.6186]
[1744915556106,1.24094,1611.8,1611.7,11.10606141]
[1744915556302,4.44874,1611.8,1611.7,13.63556141]
[1744915557013,6.10354,1611.8,1611.7,13.63556141]
[1744915557616,4.8626,1611.8,1611.7,13.63556141]
[1744915557812,2.10377,1612.1,1612.0,1.24079]
[1744915558110,7.02780852,1612.5,1612.4,1.24048]
[1744915558314,7.83730852,1612.5,1612.4,1.24048]
[1744915558516,6.18250852,1612.5,1612.4,1.24048]
[1744915558716,6.18250852,1612.5,1612.4,3.67918]
[1744915559102,6.18250852,1612.5,1612.4,3.75418]
[1744915560410,6.18250852,1612.5,1612.4,6.96198]
[1744915560613,6.18250852,1612.5,1612.4,7.99718]
[1744915561205,6.18250852,1612.5,1612.4,7.92218]
[1744915562619,3.04859742,1612.6,1612.5,1.2404]
[1744915562812,3.53264742,1612.6,1612.5,1.2404]
[1744915563317,3.53264742,1612.6,1612.5,2.9954]
[1744915563513,1.80824742,1612.6,1612.5,2.9954]
[1744915563719,1.80824742,1612.6,1612.5,3.7918]
[1744915565713,1.80824742,1612.6,1612.5,8.7918]
[1744915566321,1.80824742,1612.6,1612.5,8.8668]
[1744915566613,0.13408742,1612.6,1612.5,8.8668]
[1744915567118,1.37441742,1612.6,1612.5,3.8668]
[1744915567311,0.13408742,1612.6,1612.5,3.8668]
[1744915569219,7.42e-06,1612.6,1612.5,8.8668]
[1744915569421,7.42e-06,1612.6,1612.5,3.8668]
[1744915575823,7.42e-06,1612.6,1612.5,2.1118]
[1744915576224,1.60420742,1612.6,1612.5,2.1118]
[1744915578822,1.60420742,1612.6,1612.5,3.7933]
[1744915580729,7.42e-06,1612.6,1612.5,3.7933]
[1744915584524,1.72230742,1612.6,1612.5,3.7933]
[1744915585134,1.72230742,1612.6,1612.5,2.1118]
[1744915585337,2.56680742,1612.6,1612.5,2.1118]
[1744915586942,8.57887698,1613.2,1613.1,1.23994]
[1744915587135,8.13804698,1613.2,1613.1,1.23994]
[1744915587735,9.37791698,1613.2,1613.1,1.23994]
[1744915588334,7.81347,1613.2,1613.1,1.23994]
[1744915589628,7.81351,1613.2,1613.1,1.23994]
[1744915592028,7.81347,1613.2,1613.1,1.23994]
[1744915593738,6.5736,1613.2,1613.1,1.23994]
[1744915594140,6.5736,1613.2,1612.7,0.8208]
[1744915594141,6.21,1613.1,1612.3,4.05293264]
[1744915594341,3.2078,1611.6,1611.4,18.85998713]
[1744915594541,1.24156,1611.0,1610.9,161.40468297]
[1744915594733,7.4428,1611.0,1610.6,82.33073442]
[1744915594940,1.24179,1610.7,1610.6,5.40930428]
[1744915595250,1.24264,1609.6,1609.5,47.65845881]
[1744915595444,7.34023,1610.4,1609.6,12.4127]
[1744915595631,0.00929742,1610.8,1610.3,1.18599]
[1744915595833,10.82533696,1610.7,1609.9,12.4127]
[1744915596037,1.24194,1610.5,1610.4,1.90596]
[1744915596238,1.85227696,1610.5,1610.4,3.2078]
[1744915596541,0.69312767,1610.5,1610.4,79.80946247]
[1744915596731,0.69312767,1610.5,1610.4,111.77531939]
[1744915596932,0.00929742,1610.7,1610.6,1.24187]
[1744915597138,21.64132935,1611.4,1611.0,31.96585692]
[1744915597431,21.64132935,1611.4,1611.3,3.2078]
[1744915597634,14.54532935,1611.4,1611.3,36.41498692]
[1744915597843,18.0636179,1611.7,1611.3,112.21241204]
[1744915598041,18.0636179,1611.7,1611.6,15.6205]
[1744915598236,18.07291532,1611.7,1611.6,39.64665692]
[1744915598431,18.07291532,1611.7,1611.6,107.21241204]
[1744915599134,18.07291532,1611.7,1611.6,83.18625512]
[1744915599335,19.86336927,1611.7,1611.6,3.2078]
[1744915599639,1.2411,1611.6,1611.5,0.075]
[1744915599845,1.79053395,1611.6,1611.5,3.2828]
[1744915600146,1.79053395,1611.6,1611.5,3.2078]
[1744915600545,1.79038529,1611.6,1611.5,3.2078]
[1744915600838,6.20167,1612.6,1611.5,3.2078]
[1744915600839,3.2078,1613.0,1612.2,1.24059]
[1744915601038,1.24048,1612.4,1612.3,1.654]
[1744915601243,1.24056,1612.3,1612.2,0.075]
[1744915601443,0.54904788,1612.3,1612.2,0.075]
[1744915601646,1.24056,1612.3,1612.2,0.075]
[1744915601835,1.24079,1612.0,1611.9,1.654]
[1744915602145,3.83186212,1612.0,1611.5,5.71415]
[1744915602341,3.83186212,1612.0,1611.8,7.42e-06]
[1744915602342,1.78993212,1611.9,1611.8,7.42e-06]
[1744915602561,1.78993212,1611.9,1610.8,0.7973]
[1744915602562,1.24156,1611.0,1610.9,3.2078]
[1744915602746,3.2078,1611.4,1611.0,31.96585692]
[1744915603047,1.24125,1611.4,1611.3,19.55315692]
[1744915603239,1.79050969,1611.4,1611.3,19.55315692]
[1744915603437,0.54925969,1611.4,1610.8,0.72251417]
[1744915603742,1.79058969,1611.3,1611.2,0.00929742]
[1744915603948,1.79040325,1611.3,1611.2,0.00929742]
[1744915604241,1.79040325,1611.3,1611.2,0.08429742]
[1744915604242,0.54907325,1611.3,1611.2,0.08429742]
[1744915604439,1.79040325,1611.3,1611.2,1.75669742]
[1744915604641,0.54907325,1611.3,1611.2,27.64247422]
[1744915604946,0.00929742,1611.5,1611.2,19.76807343]
[1744915605136,1.6735,1611.4,1611.3,1.24133]
[1744915605343,0.00929742,1611.5,1611.4,33.20710692]
[1744915605538,7.42e-06,1611.5,1611.4,52.97518035]
[1744915605745,1.24068,1612.2,1612.0,31.96585692]
[1744915606045,19.2093992,1612.3,1611.9,4.44864]
[1744915606244,2.9142,1612.2,1611.9,4.44864]
[1744915606442,18.0636179,1612.1,1611.9,19.76807343]
[1744915606643,19.7371179,1612.1,1611.9,17.80107343]
[1744915606948,1.24079,1612.0,1611.9,3.2078]
[1744915607146,2.91429,1612.0,1611.9,3.2078]
[1744915607359,18.0636179,1612.1,1611.9,21.00889343]
[1744915607642,19.0300992,1612.4,1611.9,21.00889343]
[1744915607643,2.82526364,1612.4,1612.3,20.79371692]
[1744915607845,2.82526364,1612.4,1612.3,28.70351692]
[1744915608034,2.82526364,1612.4,1612.3,57.67649035]
[1744915608443,1.51657364,1612.4,1612.3,62.67649035]
[1744915608639,3.64e-06,1612.4,1612.3,64.42389035]
[1744915609148,31.64426408,1613.1,1613.0,1.24002]
[1744915609343,31.64426408,1613.1,1613.0,31.10861067]
[1744915609543,31.64426408,1613.1,1613.0,22.50129343]
[1744915609740,31.64426408,1613.1,1613.0,23.00867343]
[1744915610055,31.64426408,1613.1,1613.0,24.24869343]
[1744915610252,32.30054736,1613.1,1613.0,24.24869343]
[1744915610448,0.65628328,1613.1,1613.0,24.24869343]
[1744915610646,0.65628328,1613.1,1613.0,49.4162841]
[1744915611052,0.00929742,1613.2,1613.0,48.1762641]
[1744915611351,0.00929742,1613.2,1613.1,33.42070601]
[1744915611539,0.00929742,1613.2,1613.1,46.1756041]
[1744915612146,0.66520985,1613.2,1613.1,46.1756041]
[1744915612348,0.66520985,1613.2,1613.1,32.18076601]
[1744915612543,1.90507985,1613.2,1613.1,19.76807343]
[1744915612746,1.90507985,1613.2,1613.0,6.4484]
[1744915612747,1.23994,1613.1,1613.0,6.4484]
[1744915612941,1.90510985,1613.2,1613.1,16.56027343]
[1744915613146,0.66520985,1613.2,1613.1,28.97296601]
[1744915613452,0.66520985,1613.2,1613.1,17.80021343]
[1744915613944,1.90507985,1613.2,1613.1,16.56027343]
[1744915614144,1.90508985,1613.2,1613.1,16.56027343]
[1744915614752,0.66520985,1613.2,1613.1,46.1756041]
[1744915614952,0.66520985,1613.2,1613.1,51.1756041]
[1744915615154,15.81250778,1613.5,1613.4,1.23971]
[1744915615452,15.81250778,1613.5,1613.4,34.31410067]
[1744915615653,15.81250778,1613.5,1613.4,55.8743741]
[1744915615844,15.81250778,1613.5,1613.4,50.8743741]
[1744915616045,13.16780778,1613.5,1613.4,55.8743741]
[1744915616253,7.85050778,1613.5,1613.4,55.9493741]
[1744915616951,7.85050778,1613.5,1613.4,50.9493741]
[1744915617157,7.85050778,1613.5,1613.4,50.8743741]
[1744915617853,7.85050778,1613.5,1613.4,49.6346641]
[1744915618053,7.85050778,1613.5,1613.4,50.8743741]
[1744915618356,9.09014778,1613.5,1613.4,19.76807343]
[1744915618548,3.72099909,1613.5,1613.4,21.25827343]
[1744915619550,3.72099909,1613.5,1613.4,22.49798343]
[1744915619751,3.72099909,1613.5,1613.4,21.25827343]
[1744915620246,2.48135909,1613.5,1613.4,25.70578343]
[1744915620452,0.79025909,1613.5,1613.4,52.4839741]
[1744915620954,0.79025909,1613.5,1613.4,57.4839741]
[1744915621347,0.79025909,1613.5,1613.4,38.21308545]
[1744915621550,0.79025909,1613.5,1613.4,42.66059545]
[1744915621752,0.79025909,1613.5,1613.4,47.66059545]
[1744915622148,0.79025909,1613.5,1613.4,42.66059545]
[1744915622544,1.23979,1613.3,1613.2,5.5489]
[1744915622743,1.23979,1613.3,1613.2,4.698]
[1744915622954,1.6209,1613.4,1613.2,21.25827343]
[1744915623147,4.07474284,1613.6,1613.3,36.72288545]
[1744915623353,4.07474284,1613.6,1613.5,18.19445202]
[1744915623547,4.07474284,1613.6,1613.5,22.89145202]
[1744915623847,1.23964,1613.5,1613.4,0.8806]
[1744915624050,1.23971,1613.4,1613.3,5.93679]
[1744915624253,1.23971,1613.4,1613.3,21.25727343]
[1744915624450,3.09948,1613.3,1612.9,0.00929742]
[1744915624651,2.86755,1613.3,1613.2,1.23987]
[1744915624850,1.6277,1613.3,1613.2,18.19468202]
[1744915625064,1.6277,1613.3,1613.2,39.45195545]
[1744915625355,2.94249,1613.3,1613.2,21.25727343]
[1744915625556,2.94249,1613.3,1613.2,16.56027343]
[1744915625950,2.94249,1613.3,1613.2,17.80014343]
[1744915626150,1.6277,1613.3,1613.2,34.75495545]
[1744915626351,6.90237335,1613.4,1613.3,1.23979]
[1744915626547,6.90237335,1613.4,1613.3,34.75487545]
[1744915626752,10.11017335,1613.4,1613.3,17.80006343]
[1744915626952,10.11017335,1613.4,1613.3,34.75487545]
[1744915627155,6.90237335,1613.4,1613.3,34.75487545]
[1744915627558,6.90237335,1613.4,1613.3,36.50137545]
[1744915627559,7.53135345,1613.4,1613.3,36.50137545]
[1744915628251,7.53135345,1613.4,1613.3,41.50137545]
[1744915629556,7.53135345,1613.4,1613.3,36.50137545]
[1744915629956,7.53135345,1613.4,1613.3,34.75487545]
[1744915630152,13.73676345,1613.4,1613.3,16.56027343]
[1744915630353,1.23987,1613.2,1613.1,4.697]
[1744915630656,3.6266701,1613.4,1613.3,18.19460202]
[1744915630857,1.23979,1613.3,1613.2,16.56027343]
[1744915631155,1.7579,1613.3,1613.2,18.19468202]
[1744915631459,1.7579,1613.3,1613.2,34.75495545]
[1744915631460,2.38768003,1613.3,1613.2,34.75495545]
[1744915631659,2.38768003,1613.3,1613.2,36.43735545]
[1744915631961,2.38768003,1613.3,1613.2,39.64515545]
[1744915631962,0.62978003,1613.3,1613.2,39.64515545]
[1744915633060,4.69948216,1613.3,1613.2,39.64515545]
[1744915633461,5.25034815,1613.3,1613.2,39.64515545]
[1744915633759,6.49013815,1613.3,1613.2,25.20785736]
[1744915633961,6.35838216,1613.3,1613.2,25.20785736]
[1744915634152,6.90925626,1613.3,1613.2,25.20785736]
[1744915634863,6.90925626,1613.3,1613.2,29.95985736]
[1744915635255,9.74207956,1613.3,1613.2,29.95985736]
[1744915635458,9.74207956,1613.3,1613.2,18.89410087]
[1744915635655,9.74207956,1613.3,1613.2,32.88886896]
[1744915635858,9.74466674,1613.3,1613.2,28.13686896]
[1744915636155,8.08576674,1613.3,1613.2,32.88886896]
[1744915636751,7.29535557,1613.3,1613.2,32.88886896]
[1744915636952,7.29535557,1613.3,1613.2,21.86902956]
[1744915637157,8.99365557,1613.3,1613.2,21.86902956]
[1744915638760,6.94920101,1613.3,1613.2,18.66122956]
[1744915638962,6.94920101,1613.3,1613.2,13.90922956]
[1744915639159,6.94920101,1613.3,1613.2,18.66022956]
[1744915639465,6.94527631,1613.3,1613.2,18.66022956]
[1744915639654,5.24697631,1613.3,1613.2,20.33472956]
[1744915640068,0.54953658,1613.3,1613.2,12.57983147]
[1744915640363,23.95033751,1613.6,1613.5,1.23964]
[1744915640659,23.95033751,1613.6,1613.5,15.47383752]
[1744915641657,23.95033751,1613.6,1613.5,20.47383752]
[1744915641863,23.95033751,1613.6,1613.5,15.47383752]
[1744915642159,1.7338,1613.9,1613.8,1.23941]
[1744915642355,2.97313,1613.9,1613.8,11.02639752]
[1744915642558,7.97313,1613.9,1613.8,4.751]
[1744915642763,2.97313,1613.9,1613.8,4.751]
[1744915642961,1.7338,1613.9,1613.8,12.26580752]
[1744915643263,4.9416,1613.9,1613.8,12.26580752]
[1744915643465,1.7338,1613.9,1613.8,12.26580752]
[1744915643852,2.97313,1613.9,1613.8,12.26580752]
[1744915644059,2.97313,1613.9,1613.8,4.751]
[1744915644358,1.7338,1613.9,1613.8,5.99041]
[1744915644965,1.7338,1613.9,1613.8,12.26580752]
[1744915645161,10.66677496,1613.9,1613.8,12.26580752]
[1744915645363,10.66677496,1613.9,1613.8,9.11520218]
[1744915645665,10.66677496,1613.9,1613.8,10.35461218]
[1744915645858,16.90610496,1613.9,1613.8,4.751]
[1744915646466,8.76329053,1613.9,1613.8,4.751]
[1744915646966,2.52396053,1613.9,1613.8,5.99041]
[1744915647367,2.59896053,1613.9,1613.8,5.99041]
[1744915647762,10.69734053,1613.9,1613.4,4.75]
[1744915648069,1.23979,1613.3,1613.2,5.98984]
[1744915648361,1.23979,1613.3,1613.1,1.23992]
[1744915648362,1.23991,1613.2,1613.1,1.23992]
[1744915648568,2.91801,1613.2,1613.1,1.23992]
[1744915648768,2.91801,1613.2,1613.1,5.60412218]
[1744915649065,1.6781,1613.2,1613.1,10.35412218]
[1744915649859,11.43048566,1613.6,1613.5,1.23964]
[1744915650060,11.43048566,1613.6,1613.5,5.99064]
[1744915650368,11.43048566,1613.6,1613.5,4.751]
[1744915650867,10.19088566,1613.6,1613.5,5.99064]
[1744915651068,11.85118566,1613.6,1613.5,10.35484218]
[1744915651665,18.25367122,1613.6,1613.5,10.35484218]
[1744915652067,18.25367122,1613.6,1613.5,4.751]
[1744915652367,20.53829778,1613.6,1613.5,5.99064]
[1744915652567,20.53829778,1613.6,1613.5,1.23964]
[1744915652769,19.29873778,1613.6,1613.5,5.99064]
[1744915653069,43.00355382,1613.6,1613.5,5.99064]
[1744915653368,44.24311382,1613.6,1613.5,5.99064]
[1744915653563,43.00355382,1613.6,1613.5,5.99064]
[1744915653769,44.24311382,1613.6,1613.5,5.99064]
[1744915653969,1.23973,1613.4,1613.2,3.2078]
[1744915654266,0.4835606,1613.3,1613.2,4.44767]
[1744915654464,1.04510254,1613.3,1613.2,9.19867]
[1744915655265,2.77480254,1613.3,1613.2,9.19867]
[1744915655862,55.29721832,1613.3,1613.2,9.19867]
[1744915656064,55.29721832,1613.3,1613.2,9.58257]
[1744915656261,55.29739857,1613.3,1613.2,9.58257]
[1744915656465,55.29739873,1613.3,1613.2,9.58257]
[1744915656665,55.29739873,1613.3,1613.2,9.19867]
[1744915657569,55.29743069,1613.3,1613.2,9.19867]
[1744915657765,59.74502069,1613.3,1613.2,4.751]
[1744915657966,3.09969,1613.2,1612.9,0.00929742]
[1744915658168,1.24002,1613.0,1612.9,0.00929742]
[1744915658362,1.2401,1612.9,1612.8,4.751]
[1744915658563,1.24033,1612.6,1612.5,4.751]
[1744915658762,2.28564491,1612.6,1612.5,4.751]
[1744915659059,2.28564491,1612.6,1612.1,7.55517]
[1744915659060,1.24064,1612.2,1612.1,4.751]
[1744915659361,1.04470796,1612.2,1611.9,4.751]
[1744915659565,3.91559796,1612.1,1612.0,0.00929742]
[1744915660160,1.24087,1611.9,1611.7,89.1438]
[1744915660360,1.24087,1611.9,1611.8,4.751]
[1744915660563,1.24076,1612.1,1611.9,1.2408]
[1744915660767,1.72316959,1612.0,1611.8,5.99189]
[1744915660968,1.80102561,1611.9,1611.8,5.99189]
[1744915661268,1.04251883,1611.9,1611.8,5.99194]
[1744915661467,1.80102561,1611.9,1611.7,0.00929742]
[1744915661662,1.80102561,1611.9,1611.8,1.24094]
[1744915661962,1.80102561,1611.9,1611.7,0.00929742]
[1744915661963,1.24094,1611.8,1611.7,0.00929742]
[1744915662162,1.80109561,1611.8,1611.7,0.00929742]
[1744915662364,10.00889561,1611.8,1611.7,0.00929742]
[1744915662561,10.48995762,1611.8,1611.7,0.00929742]
[1744915662875,10.48995762,1611.8,1611.1,89.42472]
[1744915662876,1.24132,1611.4,1611.1,1.24142]
[1744915663069,1.24133,1611.3,1611.1,1.24142]
[1744915663271,24.55417122,1611.8,1611.1,4.753]
[1744915663471,1.5942,1611.2,1611.1,9.20228]
[1744915663672,1.24112,1611.6,1611.1,9.20228]
[1744915663673,1.24113,1611.6,1611.4,1.24123]
[1744915663871,1.5942,1611.5,1611.4,5.99423]
[1744915664772,2.83537,1611.5,1611.4,4.753]
[1744915665274,1.24136,1611.3,1611.1,1.24145]
[1744915665478,1.24148,1611.1,1611.0,0.00929742]
[1744915665873,7.83568,1611.1,1611.0,0.00929742]
[1744915666072,1.5942,1611.1,1611.0,0.00929742]
[1744915666272,6.04348,1611.1,1611.0,0.00929742]
[1744915666777,3.62720195,1611.1,1611.0,0.00929742]
[1744915666975,2.38572195,1611.1,1610.7,4.713]
[1744915667172,1.24171,1610.8,1610.7,4.713]
[1744915667378,1.24171,1610.8,1610.7,5.95479]
[1744915667580,1.24171,1610.8,1610.7,4.713]
[1744915667880,2.9647,1610.9,1610.7,1.24174]
[1744915668180,1.723,1610.9,1610.7,1.31674]
[1744915668485,1.723,1610.9,1610.8,1.24171]
[1744915669282,1.24171,1610.8,1610.7,0.075]
[1744915669683,2.87041,1610.8,1610.7,0.075]
[1744915670882,1.6287,1610.8,1610.7,1.31679]
[1744915671383,2.87041,1610.8,1610.7,0.075]
[1744915671682,6.07821,1610.8,1610.7,0.075]
[1744915672183,11.07821,1610.8,1610.7,0.075]
[1744915673089,12.94085,1610.8,1610.3,1.24207]
[1744915673283,12.94085,1610.8,1610.2,4.715]
[1744915673284,3.2078,1610.4,1610.2,4.715]
[1744915673585,1.2421,1610.3,1610.2,4.715]
[1744915673788,1.24225,1610.1,1610.0,5.9573]
[1744915674284,1.24225,1610.1,1610.0,4.79]
[1744915674481,1.24225,1610.1,1610.0,6.03233]
[1744915674679,1.24225,1610.1,1610.0,1.31733]
[1744915675281,0.00929742,1610.2,1610.1,1.24225]
[1744915678079,0.00929742,1610.2,1610.1,6.24225]
[1744915678490,0.00929742,1610.2,1610.1,5.95925]
[1744915678690,1.72779742,1610.2,1610.1,5.95925]
[1744915678885,1.24225,1610.1,1610.0,4.52508]
[1744915679089,1.24225,1610.1,1610.0,0.075]
[1744915679289,9.45005,1610.1,1610.0,0.075]
[1744915679484,10.32635,1610.1,1610.0,0.075]
[1744915679884,1.24233,1610.0,1609.9,0.00929742]
[1744915680088,1.2425,1609.8,1609.7,1.2425]
[1744915680390,1.2425,1609.8,1609.4,11.03176]
[1744915680391,1.2426,1609.7,1609.6,1.24261]
[1744915680593,4.45032,1609.8,1609.7,1.24256]
[1744915680784,1.24252,1609.8,1609.7,1.24256]
[1744915680981,0.8763,1610.1,1609.6,6.31438]
[1744915681181,0.00929742,1610.2,1609.9,3.10588]
[1744915681394,4.45930742,1610.2,1610.1,1.24225]
[1744915681585,0.00929742,1610.2,1610.1,1.24225]
[1744915682191,1.24225,1610.1,1610.0,0.075]
[1744915682394,1.24225,1610.1,1610.0,1.31733]
[1744915682596,1.24225,1610.1,1610.0,0.075]
[1744915682796,6.24225,1610.1,1610.0,0.075]
[1744915682994,3.10588,1610.0,1609.3,6.4421]
[1744915683194,1.2426,1609.7,1609.6,1.2426]
[1744915683698,1.24266,1609.6,1609.5,1.24266]
[1744915684190,2.87144,1609.7,1609.5,0.075]
[1744915684396,2.87144,1609.7,1609.6,1.24264]
[1744915684790,1.6288,1609.7,1609.6,1.24264]
[1744915685593,1.6288,1609.7,1609.6,2.89764]
[1744915685792,1.24264,1609.6,1609.5,0.075]
[1744915686189,9.82224,1609.6,1609.2,1.24293]
[1744915686396,1.24295,1609.2,1609.1,1.24298]
[1744915686692,6.31531,1609.2,1608.8,3.2078]
[1744915686897,2.27011075,1609.1,1609.0,1.2431]
[1744915687294,6.72094075,1609.1,1609.0,1.3181]
[1744915687494,2.27011075,1609.1,1609.0,1.3181]
[1744915687703,0.30483986,1609.1,1609.0,14.2449]
[1744915687894,9.86e-06,1609.1,1609.0,14.2449]
[1744915688196,0.00929742,1609.3,1609.2,1.24295]
[1744915688400,0.00929742,1609.3,1609.2,4.45075]
[1744915688794,0.00929742,1609.3,1609.2,1.24295]
[1744915689196,1.63049742,1609.3,1609.2,1.31795]
[1744915689396,0.00929742,1609.3,1609.2,14.24575]
[1744915689600,0.00929742,1609.3,1609.2,15.06015]
[1744915689989,0.00929742,1609.3,1609.2,0.8001443]
[1744915690195,0.00929742,1609.3,1609.2,6.8380943]
[1744915690391,0.00929742,1609.3,1609.2,8.4726943]
[1744915690598,0.00929742,1609.3,1609.2,13.4726943]
[1744915690999,7.42e-06,1609.3,1609.2,13.4726943]
[1744915691298,7.42e-06,1609.3,1609.2,8.4726943]
[1744915692000,2.16991109,1609.3,1609.2,6.03795]
[1744915692201,7.16991109,1609.3,1609.2,1.31795]
[1744915692401,2.16991109,1609.3,1609.2,1.31795]
[1744915692588,2.16991109,1609.3,1609.2,2.95255]
[1744915692795,7.16991109,1609.3,1609.2,0.075]
[1744915693104,13.41311321,1609.3,1609.2,0.075]
[1744915693300,1.24295,1609.2,1609.1,0.00929]
[1744915693490,6.55908579,1609.2,1609.1,0.00929]
[1744915693695,11.55908579,1609.2,1609.1,0.00929]
[1744915693903,5.31613579,1609.2,1609.1,1.25232]
[1744915694100,5.31613579,1609.2,1608.7,0.8723]
[1744915694101,10.31613579,1609.2,1608.5,0.7971]
[1744915694303,3.2078,1608.7,1608.6,1.24341]
[1744915694497,3.70583579,1608.7,1608.6,1.24341]
[1744915694796,3.70589113,1608.7,1608.6,1.24341]
[1744915695001,3.2078,1609.0,1608.7,1.24333]
[1744915695198,0.49817396,1608.9,1608.8,1.24326]
[1744915695403,2.10847396,1608.9,1608.8,1.24326]
[1744915695597,0.49817396,1608.9,1608.8,1.24326]
[1744915696297,0.49817396,1608.9,1608.8,2.07986]
[1744915696800,5.41426612,1608.9,1608.7,4.866]
[1744915697106,6.70331612,1608.8,1608.7,0.075]
[1744915697708,11.61902612,1608.8,1608.7,0.075]
[1744915698704,1.24349,1608.5,1608.2,4.73107]
[1744915698893,5.46005612,1608.4,1608.3,6.03564]
[1744915699098,5.46005612,1608.4,1608.2,0.075]
[1744915699292,5.46005612,1608.4,1607.9,7.90188]
[1744915699293,0.49855612,1608.3,1607.4,3.2078]
[1744915699496,3.2078,1607.7,1607.5,1.24426]
[1744915699806,3.2078,1607.7,1607.6,2.87159]
[1744915700303,3.2078,1607.7,1607.6,7.66359]
[1744915700502,3.76042732,1607.7,1607.6,7.66359]
[1744915700700,9.17350563,1607.7,1607.5,0.075]
[1744915700901,3.2078,1607.7,1607.6,1.24419]
[1744915701206,3.70514053,1607.7,1607.6,7.66459]
[1744915701402,9.86496053,1607.7,1607.6,4.793]
[1744915701601,9.17231451,1607.7,1607.6,1.24419]
[1744915702099,9.17183078,1607.7,1607.6,1.24419]
[1744915702303,4.25612078,1607.7,1607.6,1.24419]
[1744915702504,3.75926398,1607.7,1607.6,1.24419]
[1744915702691,8.67497398,1607.7,1607.6,1.24419]
[1744915703104,1.24419,1607.6,1607.5,6.11219]
[1744915703293,2.78239619,1607.6,1607.5,6.11219]
[1744915703497,2.78239619,1607.6,1607.5,0.075]
[1744915703498,8.44566398,1607.6,1607.5,0.075]
[1744915703694,7.20147398,1607.6,1607.5,1.31926]
[1744915704397,8.94178727,1607.6,1607.5,0.075]
[1744915704802,3.11066,1607.5,1606.8,3.11199]
[1744915705004,5.89230679,1607.4,1606.7,4.795]
[1744915705305,3.2078,1607.2,1607.1,1.24457]
[1744915705496,5.49356398,1607.4,1607.3,1.24442]
[1744915705696,5.49356398,1607.4,1607.0,7.90661]
[1744915705896,3.2078,1607.2,1607.1,1.24457]
[1744915706307,1.24457,1607.1,1607.0,6.1146]
[1744915706509,2.91827,1607.1,1607.0,6.1146]
[1744915706805,2.91827,1607.1,1607.0,4.87]
[1744915707003,2.91827,1607.1,1607.0,0.075]
[1744915707410,2.22265484,1607.1,1607.0,1.31965]
[1744915707622,3.46722484,1607.1,1607.0,0.075]
[1744915708200,7.22265484,1607.1,1606.5,94.05753]
[1744915708401,3.2078,1606.6,1606.5,92.19004]
[1744915709206,3.2078,1606.6,1606.5,92.26504]
[1744915709403,1.7247,1606.7,1606.6,1.24496]
[1744915709696,3.21712662,1607.0,1606.9,1.24473]
[1744915710104,0.00932662,1607.0,1606.9,1.31973]
[1744915710305,3.21712662,1607.0,1606.9,1.31973]
[1744915710706,13.35512662,1607.0,1606.0,3.11355]
[1744915710912,3.2078,1606.4,1606.2,1.2983]
[1744915711113,3.2078,1606.4,1606.3,1.24519]
[1744915711307,3.2078,1606.6,1606.4,1.24511]
[1744915711501,3.2078,1606.6,1606.5,6.38304]
[1744915711699,0.87532662,1607.0,1606.5,6.38304]
[1744915712001,3.21712662,1607.0,1606.9,1.24473]
[1744915712211,3.21712662,1607.0,1606.9,6.45773]
[1744915713408,3.21712662,1607.0,1606.9,6.38273]
[1744915713616,6.15747662,1607.0,1606.9,5.138]
[1744915713818,6.70566063,1607.0,1606.9,5.138]
[1744915714111,1.24482,1606.8,1606.7,1.24484]
[1744915714304,1.24488,1606.7,1606.6,5.138]
[1744915714507,1.7012,1606.7,1606.6,6.38296]
[1744915715205,1.7012,1606.7,1606.6,1.24496]
[1744915715410,1.7012,1606.7,1606.1,3.2078]
[1744915715411,6.22482,1606.6,1605.6,0.51626578]
[1744915715602,3.2078,1606.1,1605.8,1.24558]
[1744915715808,4.45336,1605.9,1605.7,1.24563]
[1744915716006,1.7012,1605.8,1605.7,6.38366]
[1744915716212,1.7012,1605.8,1605.7,6.45866]
[1744915717109,1.7012,1605.8,1605.7,1.32066]
[1744915717311,1.7012,1605.8,1605.7,6.45966]
[1744915718210,1.7012,1605.8,1605.7,0.075]
[1744915718416,1.7012,1605.8,1605.7,1.32066]
[1744915719312,0.00932662,1606.0,1605.9,1.2455]
[1744915719615,3.2078,1606.5,1606.4,1.24511]
[1744915719817,4.8134,1606.5,1606.4,6.38611]
[1744915720214,4.8134,1606.5,1606.4,6.46111]
[1744915720617,7.18444956,1606.7,1606.4,13.4238]
[1744915720912,5.82721956,1606.7,1606.6,1.24496]
[1744915721118,2.81608618,1606.7,1606.6,6.24496]
[1744915721419,1.12367618,1606.7,1606.6,6.24496]
[1744915721616,6.18e-06,1606.7,1606.6,6.24496]
[1744915722117,6.18e-06,1606.7,1606.6,9.45276]
[1744915722319,6.18e-06,1606.7,1606.6,11.09386]
[1744915723221,6.18e-06,1606.7,1606.6,1.24496]
[1744915723417,6.18e-06,1606.7,1606.5,5.215]
[1744915723615,4.45276,1606.6,1606.5,5.215]
[1744915723816,5.72648189,1606.6,1606.5,6.46004]
[1744915725025,5.72648189,1606.6,1606.5,5.215]
[1744915725315,6.97144189,1606.6,1606.5,0.45293439]
[1744915725520,5.72648189,1606.6,1606.5,1.69797439]
[1744915726123,0.54978189,1606.6,1606.5,1.77297439]
[1744915726311,6.18e-06,1606.7,1606.6,1.24496]
[1744915726519,0.5519659,1606.7,1606.6,3.23706]
[1744915726721,3.7597659,1606.7,1606.5,0.52793439]
[1744915726922,1.8588,1606.6,1606.5,0.52793439]
[1744915727225,2.90804995,1606.6,1606.5,1.77297439]
[1744915727821,4.15300995,1606.6,1606.5,1.77297439]
[1744915728129,2.90804995,1606.6,1606.5,1.77297439]
[1744915728920,4.15461408,1606.6,1606.5,0.52793439]
[1744915729127,4.15461408,1606.6,1606.5,1.77297439]
[1744915729427,2.90965408,1606.6,1606.5,1.77297439]
[1744915729726,1.05085408,1606.6,1606.5,1.77297439]
[1744915730230,0.55195972,1606.6,1606.5,1.77297439]
[1744915730618,1.05128047,1606.6,1606.5,6.38604]
[1744915730815,2.49603068,1606.6,1606.5,6.38604]
[1744915731025,2.99536065,1606.6,1606.5,6.38604]
[1744915731224,6.20316065,1606.6,1606.5,6.46104]
[1744915731525,7.44812065,1606.6,1606.5,5.216]
[1744915732022,12.44812065,1606.6,1606.5,5.216]